[Event "*** Titled Tuesday Blitz"]
[Site "Chess.com"]
[Date "2021.02.02"]
[Round "10"]
[White "Gmedmundo"]
[Black "Artyom_ChessMate"]
[Result "1-0"]
[WhiteElo "2429"]
[BlackElo "2554"]
[TimeControl "180+1"]
[EndTime "11:57:05 PST"]
[Termination "Gmedmundo won by resignation"]

1. e4 {[%clk 0:03:00.9]} 1... c5 {[%clk 0:02:59.4]} 2. Nf3 {[%clk 0:02:59.8]}
2... d6 {[%clk 0:02:59.6]} 3. d4 {[%clk 0:02:58.3]} 3... cxd4 {[%clk 0:03:00.5]}
4. Nxd4 {[%clk 0:02:57.6]} 4... Nf6 {[%clk 0:03:01.2]} 5. Nc3 {[%clk 0:02:57.1]}
5... g6 {[%clk 0:03:01.4]} 6. Be3 {[%clk 0:02:55.9]} 6... Bg7 {[%clk 0:03:01.7]}
7. f3 {[%clk 0:02:55.7]} 7... O-O {[%clk 0:03:02.2]} 8. Qd2 {[%clk 0:02:54.8]}
8... Nc6 {[%clk 0:03:02.5]} 9. Bc4 {[%clk 0:02:54.1]} 9... Bd7 {[%clk
0:03:01.8]} 10. O-O-O {[%clk 0:02:53.5]} 10... Rc8 {[%clk 0:03:02.1]} 11. Bb3
{[%clk 0:02:53.2]} 11... Ne5 {[%clk 0:03:02.5]} 12. Kb1 {[%clk 0:02:52.2]} 12...
Nc4 {[%clk 0:03:02.8]} 13. Bxc4 {[%clk 0:02:50.3]} 13... Rxc4 {[%clk 0:03:03.7]}
14. g4 {[%clk 0:02:39.4]} 14... b5 {[%clk 0:03:03.8]} 15. b3 {[%clk 0:02:25.1]}
15... Rc8 {[%clk 0:02:58.6]} 16. Ndxb5 {[%clk 0:02:13.1]} 16... Qa5 {[%clk
0:02:50.5]} 17. a4 {[%clk 0:01:58.1]} 17... a6 {[%clk 0:02:49.5]} 18. Nd5 {[%clk
0:01:52.6]} 18... Qxd2 {[%clk 0:02:50.4]} 19. Nxe7+ {[%clk 0:01:50.6]} 19... Kh8
{[%clk 0:02:50.5]} 20. Rxd2 {[%clk 0:01:49.7]} 20... Rce8 {[%clk 0:02:48.5]} 21.
Nxd6 {[%clk 0:01:43.4]} 21... Rxe7 {[%clk 0:02:46.7]} 22. Bc5 {[%clk 0:01:31.2]}
22... Re5 {[%clk 0:02:16.4]} 23. Ba3 {[%clk 0:01:22.8]} 23... Re6 {[%clk
0:01:33.9]} 24. h4 {[%clk 0:01:19]} 24... Kg8 {[%clk 0:01:22.6]} 25. h5 {[%clk
0:01:15.3]} 25... Rb8 {[%clk 0:01:17.1]} 26. hxg6 {[%clk 0:01:09.9]} 26... hxg6
{[%clk 0:01:16.4]} 27. Ka2 {[%clk 0:00:59.3]} 27... Bc6 {[%clk 0:00:37.6]} 28.
Bb2 {[%clk 0:00:53.1]} 28... Rd8 {[%clk 0:00:31.4]} 29. Rhd1 {[%clk 0:00:52.3]}
29... Nd7 {[%clk 0:00:24]} 30. Bxg7 {[%clk 0:00:49.3]} 30... Kxg7 {[%clk
0:00:24.9]} 31. Nc4 {[%clk 0:00:47.6]} 31... Rh8 {[%clk 0:00:07.9]} 32. Rxd7
{[%clk 0:00:42.6]} 32... Bxd7 {[%clk 0:00:08.8]} 33. Rxd7 {[%clk 0:00:42.3]}
33... Rh3 {[%clk 0:00:09.7]} 34. Rd3 {[%clk 0:00:35.5]} 34... Rf6 {[%clk
0:00:09]} 35. Nd2 {[%clk 0:00:33.8]} 35... Rh2 {[%clk 0:00:09.5]} 36. Kb2 {[%clk
0:00:32.5]} 36... Rf2 {[%clk 0:00:09.2]} 37. c4 {[%clk 0:00:30.8]} 37... Rb6
{[%clk 0:00:07.9]} 38. Kc3 {[%clk 0:00:28.8]} 38... Rb8 {[%clk 0:00:08.2]} 39.
b4 {[%clk 0:00:27.3]} 39... Kf6 {[%clk 0:00:08.5]} 40. c5 {[%clk 0:00:26.5]}
40... Ke5 {[%clk 0:00:08.9]} 41. Kc4 {[%clk 0:00:20.6]} 41... Kf4 {[%clk
0:00:08]} 42. c6 {[%clk 0:00:19.7]} 42... Rh2 {[%clk 0:00:04.1]} 43. b5 {[%clk
0:00:19.1]} 43... axb5+ {[%clk 0:00:05]} 44. axb5 {[%clk 0:00:19]} 44... Rh1
{[%clk 0:00:05.9]} 45. Kc5 {[%clk 0:00:17.9]} 45... Rc1+ {[%clk 0:00:05.4]} 46.
Nc4 {[%clk 0:00:17.6]} 46... Rc8 {[%clk 0:00:02.6]} 47. b6 {[%clk 0:00:14.6]}
47... Rxc6+ {[%clk 0:00:02.1]} 48. Kxc6 {[%clk 0:00:14.1]} 48... Rxc4+ {[%clk
0:00:03]} 49. Kb5 {[%clk 0:00:13.5]} 49... Rc8 {[%clk 0:00:03.1]} 50. b7 {[%clk
0:00:12.3]} 50... Rb8 {[%clk 0:00:03.4]} 51. Kc6 {[%clk 0:00:12.2]} 51... f5
{[%clk 0:00:03.7]} 52. exf5 {[%clk 0:00:11.4]} 52... gxf5 {[%clk 0:00:04.6]} 1-0

[Event "*** Titled Tuesday Blitz"]
[Site "Chess.com"]
[Date "2021.02.02"]
[Round "10"]
[White "korbul"]
[Black "ural58"]
[Result "0-1"]
[WhiteElo "2597"]
[BlackElo "2493"]
[TimeControl "180+1"]
[EndTime "11:57:07 PST"]
[Termination "ural58 won by resignation"]

1. d4 {[%clk 0:02:52.8]} 1... d5 {[%clk 0:02:53.5]} 2. Bf4 {[%clk 0:02:52]} 2...
e6 {[%clk 0:02:52.2]} 3. e3 {[%clk 0:02:51.7]} 3... Nf6 {[%clk 0:02:52.3]} 4.
Nd2 {[%clk 0:02:50.1]} 4... c5 {[%clk 0:02:51.6]} 5. c3 {[%clk 0:02:49.8]} 5...
Qb6 {[%clk 0:02:49.5]} 6. Qb3 {[%clk 0:02:48.8]} 6... Bd7 {[%clk 0:02:47.3]} 7.
Ngf3 {[%clk 0:02:44]} 7... Nc6 {[%clk 0:02:47]} 8. Qxb6 {[%clk 0:02:32.7]} 8...
axb6 {[%clk 0:02:46.6]} 9. Bc7 {[%clk 0:02:32.6]} 9... c4 {[%clk 0:02:35.1]} 10.
Bxb6 {[%clk 0:02:24.3]} 10... Bd6 {[%clk 0:02:34.3]} 11. e4 {[%clk 0:02:18.4]}
11... Ra6 {[%clk 0:02:30.9]} 12. Bc5 {[%clk 0:02:05.2]} 12... Bxc5 {[%clk
0:02:30.8]} 13. dxc5 {[%clk 0:02:06.1]} 13... dxe4 {[%clk 0:02:22.8]} 14. Ng5
{[%clk 0:02:00.9]} 14... e3 {[%clk 0:02:20.2]} 15. fxe3 {[%clk 0:01:56.8]} 15...
Ra5 {[%clk 0:02:19.9]} 16. Nge4 {[%clk 0:01:49.9]} 16... Nxe4 {[%clk 0:02:18.9]}
17. Nxe4 {[%clk 0:01:49.7]} 17... Ke7 {[%clk 0:02:13.2]} 18. Bxc4 {[%clk
0:01:48.2]} 18... f5 {[%clk 0:02:13.2]} 19. b4 {[%clk 0:01:43]} 19... Ra3 {[%clk
0:02:11.4]} 20. Nd2 {[%clk 0:01:17]} 20... Rxc3 {[%clk 0:02:09.6]} 21. a3 {[%clk
0:01:16.3]} 21... Rxe3+ {[%clk 0:02:08.3]} 22. Kf2 {[%clk 0:01:15]} 22... f4
{[%clk 0:02:03.8]} 23. Rhe1 {[%clk 0:01:12.9]} 23... Rxe1 {[%clk 0:02:01.6]} 24.
Rxe1 {[%clk 0:01:07]} 24... Ra8 {[%clk 0:01:59.7]} 25. Nb1 {[%clk 0:01:06.1]}
25... Kf6 {[%clk 0:01:57]} 26. Bb5 {[%clk 0:01:00.2]} 26... Nxb4 {[%clk
0:01:47.5]} 27. Bxd7 {[%clk 0:00:55.8]} 27... Nd3+ {[%clk 0:01:43.7]} 28. Ke2
{[%clk 0:00:55.7]} 28... Nxe1 {[%clk 0:01:43.7]} 29. Kxe1 {[%clk 0:00:56.6]}
29... Ra5 {[%clk 0:01:37.4]} 30. c6 {[%clk 0:00:52.5]} 30... bxc6 {[%clk
0:01:35.8]} 31. Bxc6 {[%clk 0:00:52.4]} 31... Rc5 {[%clk 0:01:35.7]} 32. Be4
{[%clk 0:00:48.8]} 32... h5 {[%clk 0:01:22.8]} 33. Kd2 {[%clk 0:00:46.6]} 33...
Ke5 {[%clk 0:01:14.2]} 34. Bf3 {[%clk 0:00:45.3]} 34... Kd4 {[%clk 0:01:12.9]}
35. a4 {[%clk 0:00:32.3]} 35... g6 {[%clk 0:01:02.7]} 36. Na3 {[%clk 0:00:31.2]}
36... Ra5 {[%clk 0:00:50.2]} 37. Bc6 {[%clk 0:00:23.3]} 37... e5 {[%clk
0:00:48]} 38. Bb5 {[%clk 0:00:21]} 38... e4 {[%clk 0:00:47.6]} 39. Nc2+ {[%clk
0:00:20.9]} 39... Kc5 {[%clk 0:00:47.7]} 40. Kc3 {[%clk 0:00:20.2]} 40... Ra8
{[%clk 0:00:46.5]} 41. Nd4 {[%clk 0:00:20.1]} 41... g5 {[%clk 0:00:29.1]} 42.
Ne6+ {[%clk 0:00:19.8]} 42... Kd6 {[%clk 0:00:29.2]} 43. Nxg5 {[%clk 0:00:19.4]}
43... Ke5 {[%clk 0:00:28.8]} 44. Nf7+ {[%clk 0:00:18.5]} 44... Ke6 {[%clk
0:00:24.2]} 45. Ng5+ {[%clk 0:00:18.3]} 45... Kf5 {[%clk 0:00:23.9]} 46. Nh3
{[%clk 0:00:16.9]} 46... Rg8 {[%clk 0:00:21.2]} 47. Bd7+ {[%clk 0:00:15.2]}
47... Ke5 {[%clk 0:00:19.6]} 48. g3 {[%clk 0:00:15.4]} 48... f3 {[%clk
0:00:19.2]} 49. Kd2 {[%clk 0:00:15.5]} 49... Kd4 {[%clk 0:00:18]} 50. Nf4 {[%clk
0:00:15.6]} 50... e3+ {[%clk 0:00:18.2]} 51. Ke1 {[%clk 0:00:14.9]} 51... Rb8
{[%clk 0:00:18.2]} 52. Bb5 {[%clk 0:00:15]} 52... Rc8 {[%clk 0:00:17.4]} 53.
Ne6+ {[%clk 0:00:15]} 53... Ke5 {[%clk 0:00:17.2]} 54. Kd1 {[%clk 0:00:12]}
54... Kxe6 {[%clk 0:00:16.6]} 55. a5 {[%clk 0:00:11.9]} 55... Rc5 {[%clk
0:00:15.9]} 56. a6 {[%clk 0:00:11.7]} 56... Rxb5 {[%clk 0:00:16]} 57. a7 {[%clk
0:00:12.6]} 57... Ra5 {[%clk 0:00:15.9]} 58. a8=Q {[%clk 0:00:13.5]} 58... Rxa8
{[%clk 0:00:15.8]} 0-1

[Event "*** Titled Tuesday Blitz"]
[Site "Chess.com"]
[Date "2021.02.02"]
[Round "10"]
[White "Arseniy_Nesterov"]
[Black "Sanan_Sjugirov"]
[Result "1/2-1/2"]
[WhiteElo "2843"]
[BlackElo "2914"]
[TimeControl "180+1"]
[EndTime "11:57:09 PST"]
[Termination "Game drawn by repetition"]

1. d4 {[%clk 0:03:00.9]} 1... Nf6 {[%clk 0:03:00.1]} 2. c4 {[%clk 0:03:01.6]}
2... e6 {[%clk 0:02:57.3]} 3. Nf3 {[%clk 0:03:01.4]} 3... d5 {[%clk 0:02:57.2]}
4. Nc3 {[%clk 0:03:01]} 4... Bb4 {[%clk 0:02:54.3]} 5. Qb3 {[%clk 0:03:00.4]}
5... a5 {[%clk 0:02:51.7]} 6. Bg5 {[%clk 0:02:58.3]} 6... O-O {[%clk 0:02:36.9]}
7. e3 {[%clk 0:02:50]} 7... c5 {[%clk 0:02:30.8]} 8. a3 {[%clk 0:02:46.8]} 8...
a4 {[%clk 0:02:28.3]} 9. Qc2 {[%clk 0:02:46.5]} 9... Bxc3+ {[%clk 0:02:17.2]}
10. bxc3 {[%clk 0:02:36.3]} 10... Nbd7 {[%clk 0:02:16.1]} 11. cxd5 {[%clk
0:02:35.4]} 11... exd5 {[%clk 0:02:15.5]} 12. Bd3 {[%clk 0:02:30.9]} 12... h6
{[%clk 0:02:15.3]} 13. Bh4 {[%clk 0:02:29.3]} 13... b6 {[%clk 0:02:01.6]} 14.
O-O {[%clk 0:02:22.7]} 14... Ba6 {[%clk 0:02:01.5]} 15. Bxa6 {[%clk 0:02:21.8]}
15... Rxa6 {[%clk 0:02:02.4]} 16. dxc5 {[%clk 0:02:20.2]} 16... bxc5 {[%clk
0:02:01.6]} 17. c4 {[%clk 0:02:20.5]} 17... dxc4 {[%clk 0:01:44.7]} 18. Qxc4
{[%clk 0:02:17.1]} 18... Qb6 {[%clk 0:01:45.1]} 19. Bxf6 {[%clk 0:01:46.4]}
19... Nxf6 {[%clk 0:01:42.6]} 20. Rab1 {[%clk 0:01:43.4]} 20... Qa7 {[%clk
0:01:36.4]} 21. Rfc1 {[%clk 0:01:42]} 21... Rc6 {[%clk 0:01:29.9]} 22. h3 {[%clk
0:01:36]} 22... Rfc8 {[%clk 0:01:23.4]} 23. Rb5 {[%clk 0:01:28.6]} 23... Qa6
{[%clk 0:01:16.9]} 24. Ne5 {[%clk 0:01:25.6]} 24... R6c7 {[%clk 0:01:16.9]} 25.
Nd3 {[%clk 0:01:07.7]} 25... Nd7 {[%clk 0:00:53.6]} 26. Rb2 {[%clk 0:01:01.6]}
26... Qf6 {[%clk 0:00:50.3]} 27. Rbc2 {[%clk 0:00:21.6]} 27... Nb6 {[%clk
0:00:47.7]} 28. Qa6 {[%clk 0:00:17.3]} 28... c4 {[%clk 0:00:43.3]} 29. Nb2
{[%clk 0:00:14.4]} 29... Rc6 {[%clk 0:00:33.6]} 30. Qb5 {[%clk 0:00:04.8]} 30...
Rc5 {[%clk 0:00:31.6]} 31. Qb4 {[%clk 0:00:03]} 31... c3 {[%clk 0:00:31.8]} 32.
Nd3 {[%clk 0:00:02.5]} 32... Rc4 {[%clk 0:00:29.6]} 33. Qb5 {[%clk 0:00:03.1]}
33... R4c6 {[%clk 0:00:24.1]} 34. Nf4 {[%clk 0:00:03.4]} 34... Rc5 {[%clk
0:00:24.4]} 35. Qb4 {[%clk 0:00:03.5]} 35... Rc4 {[%clk 0:00:24.1]} 36. Qb5
{[%clk 0:00:03.9]} 36... R4c5 {[%clk 0:00:22.9]} 37. Qb4 {[%clk 0:00:04.3]}
37... g5 {[%clk 0:00:23.1]} 38. Ne2 {[%clk 0:00:03.7]} 38... Nd5 {[%clk
0:00:23.2]} 39. Qxa4 {[%clk 0:00:03.6]} 39... Qb6 {[%clk 0:00:17.3]} 40. Qd4
{[%clk 0:00:03.8]} 40... Qb3 {[%clk 0:00:16.6]} 41. e4 {[%clk 0:00:02.8]} 41...
Nf4 {[%clk 0:00:16.6]} 42. Nxf4 {[%clk 0:00:03.3]} 42... gxf4 {[%clk 0:00:17.5]}
43. e5 {[%clk 0:00:04.1]} 43... Rc4 {[%clk 0:00:16.2]} 44. Qd5 {[%clk
0:00:04.1]} 44... Qb6 {[%clk 0:00:14.9]} 45. Qf3 {[%clk 0:00:02.8]} 45... Qc5
{[%clk 0:00:12.5]} 46. Qg4+ {[%clk 0:00:02.6]} 46... Kf8 {[%clk 0:00:12.8]} 47.
e6 {[%clk 0:00:03.2]} 47... Qg5 {[%clk 0:00:11.3]} 48. Qxg5 {[%clk 0:00:03.4]}
48... hxg5 {[%clk 0:00:12.2]} 49. exf7 {[%clk 0:00:04.1]} 49... Kxf7 {[%clk
0:00:13.1]} 50. Kf1 {[%clk 0:00:04.8]} 50... Ke6 {[%clk 0:00:12.8]} 51. Ke2
{[%clk 0:00:05.7]} 51... Kd5 {[%clk 0:00:13]} 52. Kd3 {[%clk 0:00:04.2]} 52...
Rd4+ {[%clk 0:00:13.1]} 53. Ke2 {[%clk 0:00:04.9]} 53... Rdc4 {[%clk 0:00:13.3]}
54. Kd3 {[%clk 0:00:05.3]} 54... Rd4+ {[%clk 0:00:13]} 55. Ke2 {[%clk
0:00:05.9]} 55... Rdc4 {[%clk 0:00:12.6]} 1/2-1/2

[Event "*** Titled Tuesday Blitz"]
[Site "Chess.com"]
[Date "2021.02.02"]
[Round "10"]
[White "MuhittinBuker"]
[Black "akanga001"]
[Result "1-0"]
[WhiteElo "2123"]
[BlackElo "1967"]
[TimeControl "180+1"]
[EndTime "11:57:09 PST"]
[Termination "MuhittinBuker won by checkmate"]

1. c4 {[%clk 0:03:00.9]} 1... b6 {[%clk 0:02:56.6]} 2. Nc3 {[%clk 0:03:01.8]}
2... Bb7 {[%clk 0:02:56]} 3. d4 {[%clk 0:03:01.4]} 3... Nf6 {[%clk 0:02:53.2]}
4. f3 {[%clk 0:02:59.5]} 4... d6 {[%clk 0:02:52.2]} 5. e4 {[%clk 0:02:59]} 5...
c5 {[%clk 0:02:52.7]} 6. d5 {[%clk 0:02:57.4]} 6... g6 {[%clk 0:02:52.1]} 7. Be3
{[%clk 0:02:56]} 7... Bg7 {[%clk 0:02:51.3]} 8. Qd2 {[%clk 0:02:56.4]} 8... Nbd7
{[%clk 0:02:47.3]} 9. h4 {[%clk 0:02:56.2]} 9... h5 {[%clk 0:02:46.3]} 10. Nh3
{[%clk 0:02:55.1]} 10... Ne5 {[%clk 0:02:44.9]} 11. Be2 {[%clk 0:02:54]} 11...
a6 {[%clk 0:02:37.5]} 12. a4 {[%clk 0:02:52.3]} 12... Qd7 {[%clk 0:02:35.3]} 13.
Ng5 {[%clk 0:02:42.3]} 13... O-O {[%clk 0:02:30]} 14. Nh3 {[%clk 0:02:36.9]}
14... b5 {[%clk 0:02:12]} 15. axb5 {[%clk 0:02:35.1]} 15... axb5 {[%clk
0:02:11.7]} 16. Rxa8 {[%clk 0:02:33.9]} 16... Rxa8 {[%clk 0:02:09.5]} 17. cxb5
{[%clk 0:02:21]} 17... Ra1+ {[%clk 0:02:08.3]} 18. Nd1 {[%clk 0:02:20.2]} 18...
c4 {[%clk 0:02:05]} 19. Qb4 {[%clk 0:02:10.8]} 19... Nd3+ {[%clk 0:01:45.2]} 20.
Bxd3 {[%clk 0:02:09.5]} 20... cxd3 {[%clk 0:01:46.1]} 21. O-O {[%clk 0:02:07.9]}
21... Ne8 {[%clk 0:01:35.6]} 22. Nhf2 {[%clk 0:02:05.9]} 22... e6 {[%clk
0:01:16.7]} 23. Nc3 {[%clk 0:01:33.6]} 23... exd5 {[%clk 0:01:10.4]} 24. Rxa1
{[%clk 0:01:30.9]} 24... dxe4 {[%clk 0:01:04.3]} 25. Ncxe4 {[%clk 0:01:27.8]}
25... d5 {[%clk 0:01:02.9]} 26. Nc5 {[%clk 0:01:25.6]} 26... Qe7 {[%clk
0:00:59.4]} 27. Bg5 {[%clk 0:01:16.9]} 27... f6 {[%clk 0:00:53.2]} 28. Bd2
{[%clk 0:01:13.8]} 28... f5 {[%clk 0:00:50.7]} 29. Nxb7 {[%clk 0:01:11.9]} 29...
Qxb7 {[%clk 0:00:49]} 30. b6 {[%clk 0:01:08.8]} 30... Nf6 {[%clk 0:00:47.3]} 31.
Ra7 {[%clk 0:01:07.1]} 31... Qb8 {[%clk 0:00:44.5]} 32. Qe7 {[%clk 0:01:05.1]}
32... Ne8 {[%clk 0:00:43.8]} 33. Qf7+ {[%clk 0:01:02.9]} 33... Kh7 {[%clk
0:00:42]} 34. Rb7 {[%clk 0:00:56.2]} 34... Qc8 {[%clk 0:00:39.7]} 35. Bc3 {[%clk
0:00:52.4]} 35... d4 {[%clk 0:00:36]} 36. Bxd4 {[%clk 0:00:39.2]} 36... Qc1+
{[%clk 0:00:35.8]} 37. Kh2 {[%clk 0:00:38.3]} 37... Qf4+ {[%clk 0:00:35.7]} 38.
g3 {[%clk 0:00:32]} 38... Qxd4 {[%clk 0:00:35.7]} 39. Kg2 {[%clk 0:00:32.2]}
39... Qe3 {[%clk 0:00:30.2]} 40. Re7 {[%clk 0:00:25.4]} 40... Qd4 {[%clk
0:00:14.2]} 41. b7 {[%clk 0:00:18.8]} 41... d2 {[%clk 0:00:15.1]} 42. Rxe8
{[%clk 0:00:15.5]} 42... Qxf2+ {[%clk 0:00:13]} 43. Kxf2 {[%clk 0:00:13.9]}
43... d1=Q {[%clk 0:00:12.8]} 44. b8=Q {[%clk 0:00:10.2]} 44... Qd2+ {[%clk
0:00:12.7]} 45. Re2 {[%clk 0:00:08.2]} 45... Qd4+ {[%clk 0:00:12.7]} 46. Kg2
{[%clk 0:00:07.5]} 46... Qd3 {[%clk 0:00:10.9]} 47. Qbg8+ {[%clk 0:00:05.3]}
47... Kh6 {[%clk 0:00:10.5]} 48. Qfxg7# {[%clk 0:00:04]} 1-0

[Event "*** Titled Tuesday Blitz"]
[Site "Chess.com"]
[Date "2021.02.02"]
[Round "10"]
[White "ChessFighter1975"]
[Black "sorrm8thatscheckm8"]
[Result "0-1"]
[WhiteElo "2430"]
[BlackElo "2553"]
[TimeControl "180+1"]
[EndTime "11:57:10 PST"]
[Termination "sorrm8thatscheckm8 won by checkmate"]

1. d4 {[%clk 0:03:00.9]} 1... Nf6 {[%clk 0:02:54.7]} 2. c4 {[%clk 0:03:00.9]}
2... g6 {[%clk 0:02:54.5]} 3. Nc3 {[%clk 0:03:00.4]} 3... Bg7 {[%clk 0:02:55.1]}
4. e4 {[%clk 0:03:01]} 4... d6 {[%clk 0:02:55.5]} 5. Nge2 {[%clk 0:03:01.7]}
5... O-O {[%clk 0:02:55.4]} 6. Ng3 {[%clk 0:03:02.3]} 6... c5 {[%clk 0:02:54.1]}
7. d5 {[%clk 0:03:02.4]} 7... e6 {[%clk 0:02:53.1]} 8. Be2 {[%clk 0:03:02.9]}
8... exd5 {[%clk 0:02:52.1]} 9. exd5 {[%clk 0:03:03.8]} 9... a6 {[%clk
0:02:51.3]} 10. a4 {[%clk 0:03:03.5]} 10... Re8 {[%clk 0:02:50.9]} 11. Bf4
{[%clk 0:03:03.6]} 11... Qc7 {[%clk 0:02:48.2]} 12. Qd2 {[%clk 0:03:03.1]} 12...
Nbd7 {[%clk 0:02:46.7]} 13. O-O {[%clk 0:03:03.1]} 13... Ne5 {[%clk 0:02:45.8]}
14. h3 {[%clk 0:03:03.7]} 14... Nfd7 {[%clk 0:02:40.4]} 15. Bh6 {[%clk
0:03:02.8]} 15... f5 {[%clk 0:02:38.7]} 16. Bxg7 {[%clk 0:03:02.2]} 16... Kxg7
{[%clk 0:02:38.7]} 17. f4 {[%clk 0:02:55.5]} 17... Nf7 {[%clk 0:02:38]} 18. Bd3
{[%clk 0:02:55.7]} 18... Nf6 {[%clk 0:02:37.7]} 19. Rae1 {[%clk 0:02:51.7]}
19... Bd7 {[%clk 0:02:37.4]} 20. Qc2 {[%clk 0:02:43.9]} 20... Qa5 {[%clk
0:01:56.6]} 21. b3 {[%clk 0:02:35.3]} 21... h5 {[%clk 0:01:49.6]} 22. Kh2 {[%clk
0:01:41.7]} 22... h4 {[%clk 0:01:45]} 23. Nge2 {[%clk 0:01:41.4]} 23... Nh5
{[%clk 0:01:27.8]} 24. Qd2 {[%clk 0:01:36]} 24... Qd8 {[%clk 0:01:21.4]} 25. Ng1
{[%clk 0:01:34.4]} 25... Qf6 {[%clk 0:01:11.7]} 26. Nf3 {[%clk 0:01:30.8]} 26...
Nxf4 {[%clk 0:00:56.8]} 27. Qxf4 {[%clk 0:00:48]} 27... Qxc3 {[%clk 0:00:55.2]}
28. Rd1 {[%clk 0:00:38.1]} 28... Qf6 {[%clk 0:00:47.3]} 29. Rde1 {[%clk
0:00:32.7]} 29... Rxe1 {[%clk 0:00:38.9]} 30. Rxe1 {[%clk 0:00:31.7]} 30... g5
{[%clk 0:00:37]} 31. Qd2 {[%clk 0:00:31.7]} 31... g4 {[%clk 0:00:33.9]} 32. Ng1
{[%clk 0:00:26.3]} 32... Ne5 {[%clk 0:00:28.5]} 33. Bc2 {[%clk 0:00:24.6]} 33...
Re8 {[%clk 0:00:22.9]} 34. Rf1 {[%clk 0:00:23]} 34... Qg6 {[%clk 0:00:20]} 35.
Qf4 {[%clk 0:00:22.5]} 35... Qh6 {[%clk 0:00:17.5]} 36. Bxf5 {[%clk 0:00:20.8]}
36... g3+ {[%clk 0:00:14.2]} 37. Kh1 {[%clk 0:00:20.3]} 37... Qxf4 {[%clk
0:00:14.6]} 38. Rxf4 {[%clk 0:00:21.2]} 38... Bxf5 {[%clk 0:00:15]} 39. Rxf5
{[%clk 0:00:22.1]} 39... Nd3 {[%clk 0:00:14.7]} 40. Nf3 {[%clk 0:00:20.7]} 40...
Re2 {[%clk 0:00:10.6]} 41. Rg5+ {[%clk 0:00:18.6]} 41... Kf8 {[%clk 0:00:09.7]}
42. Rh5 {[%clk 0:00:16]} 42... Rf2 {[%clk 0:00:09]} 43. Rh8+ {[%clk 0:00:13.7]}
43... Ke7 {[%clk 0:00:09.2]} 44. Rh7+ {[%clk 0:00:13.9]} 44... Kd8 {[%clk
0:00:09.9]} 45. Kg1 {[%clk 0:00:13.6]} 45... Ra2 {[%clk 0:00:08.4]} 46. Kf1
{[%clk 0:00:13.6]} 46... Nf4 {[%clk 0:00:07.4]} 47. Rh8+ {[%clk 0:00:12.8]}
47... Kc7 {[%clk 0:00:06.9]} 48. Nxh4 {[%clk 0:00:13.7]} 48... Kb6 {[%clk
0:00:06.5]} 49. Nf3 {[%clk 0:00:13.4]} 49... Rf2+ {[%clk 0:00:07]} 50. Kg1
{[%clk 0:00:13]} 50... Ne2+ {[%clk 0:00:06.8]} 51. Kh1 {[%clk 0:00:12.3]} 51...
Rf1+ {[%clk 0:00:07.4]} 52. Ng1 {[%clk 0:00:13.1]} 52... Rxg1# {[%clk 0:00:08]}
0-1

[Event "*** Titled Tuesday Blitz"]
[Site "Chess.com"]
[Date "2021.02.02"]
[Round "10"]
[White "pavelalexandru07"]
[Black "FMalexhdez"]
[Result "1-0"]
[WhiteElo "2321"]
[BlackElo "2203"]
[TimeControl "180+1"]
[EndTime "11:57:12 PST"]
[Termination "pavelalexandru07 won by resignation"]

1. e4 {[%clk 0:02:57.6]} 1... c5 {[%clk 0:02:59.2]} 2. Nf3 {[%clk 0:02:57.6]}
2... d6 {[%clk 0:02:59.6]} 3. d4 {[%clk 0:02:56.5]} 3... cxd4 {[%clk 0:02:59.8]}
4. Nxd4 {[%clk 0:02:55.9]} 4... Nf6 {[%clk 0:03:00.6]} 5. Nc3 {[%clk 0:02:53.1]}
5... a6 {[%clk 0:03:01]} 6. Bg5 {[%clk 0:02:48.3]} 6... e6 {[%clk 0:02:59.5]} 7.
f4 {[%clk 0:02:48]} 7... Be7 {[%clk 0:02:59.1]} 8. Qf3 {[%clk 0:02:32.9]} 8...
Qc7 {[%clk 0:02:56.4]} 9. O-O-O {[%clk 0:02:29.3]} 9... Nbd7 {[%clk 0:02:56.9]}
10. g4 {[%clk 0:02:28.8]} 10... b5 {[%clk 0:02:55.8]} 11. Bxf6 {[%clk
0:02:26.6]} 11... gxf6 {[%clk 0:02:42.4]} 12. a3 {[%clk 0:02:20.5]} 12... Bb7
{[%clk 0:02:40.9]} 13. f5 {[%clk 0:02:20.9]} 13... Ne5 {[%clk 0:02:33.1]} 14.
Qh3 {[%clk 0:02:05.8]} 14... Qd7 {[%clk 0:02:18.8]} 15. fxe6 {[%clk 0:01:01.8]}
15... fxe6 {[%clk 0:02:15]} 16. Qh5+ {[%clk 0:01:02.1]} 16... Ng6 {[%clk
0:02:06.5]} 17. Bh3 {[%clk 0:00:33.1]} 17... O-O {[%clk 0:01:33.1]} 18. Rhf1
{[%clk 0:00:16.1]} 18... b4 {[%clk 0:00:51.1]} 19. axb4 {[%clk 0:00:15.8]} 19...
e5 {[%clk 0:00:47.8]} 20. Nf5 {[%clk 0:00:15.2]} 20... a5 {[%clk 0:00:36.1]} 21.
g5 {[%clk 0:00:15]} 21... Qc7 {[%clk 0:00:31]} 22. b5 {[%clk 0:00:09.5]} 22...
a4 {[%clk 0:00:27.7]} 23. b6 {[%clk 0:00:08.1]} 23... Qxb6 {[%clk 0:00:17.6]}
24. Nxe7+ {[%clk 0:00:05.9]} 24... Nxe7 {[%clk 0:00:16.3]} 25. gxf6 {[%clk
0:00:05.9]} 25... Ng6 {[%clk 0:00:14.7]} 26. Be6+ {[%clk 0:00:05.8]} 26... Kh8
{[%clk 0:00:13.7]} 27. Qh6 {[%clk 0:00:06.2]} 27... Qc7 {[%clk 0:00:11.7]} 28.
Bf5 {[%clk 0:00:06.4]} 28... Qf7 {[%clk 0:00:10.6]} 29. Bxg6 {[%clk 0:00:06.3]}
29... Qxg6 {[%clk 0:00:10.5]} 30. Qxg6 {[%clk 0:00:06.6]} 30... hxg6 {[%clk
0:00:11.2]} 31. Nd5 {[%clk 0:00:07.5]} 31... Bxd5 {[%clk 0:00:10.6]} 32. Rxd5
{[%clk 0:00:07.5]} 32... Ra6 {[%clk 0:00:10.2]} 33. c4 {[%clk 0:00:07.7]} 33...
a3 {[%clk 0:00:09.4]} 34. bxa3 {[%clk 0:00:07.7]} 34... Rxa3 {[%clk 0:00:08]}
35. Rxd6 {[%clk 0:00:08.1]} 35... Rc3+ {[%clk 0:00:08]} 36. Kd2 {[%clk
0:00:08.7]} 36... Rxc4 {[%clk 0:00:08]} 37. Kd3 {[%clk 0:00:09.3]} 37... Ra4
{[%clk 0:00:07.8]} 38. Rf3 {[%clk 0:00:07.8]} 38... Ra3+ {[%clk 0:00:07.5]} 39.
Ke2 {[%clk 0:00:08.4]} 39... Rxf3 {[%clk 0:00:06.9]} 40. Kxf3 {[%clk 0:00:08.8]}
40... Kg8 {[%clk 0:00:06.1]} 41. Kg4 {[%clk 0:00:09.2]} 41... Kf7 {[%clk
0:00:06.1]} 42. Kg5 {[%clk 0:00:09.6]} 42... Rh8 {[%clk 0:00:04.3]} 43. Rd7+
{[%clk 0:00:09.8]} 43... Ke6 {[%clk 0:00:03.1]} 44. Re7+ {[%clk 0:00:10.1]}
44... Kd6 {[%clk 0:00:03.2]} 45. Rg7 {[%clk 0:00:09.9]} 45... Rxh2 {[%clk
0:00:03.5]} 46. Kxg6 {[%clk 0:00:09.7]} 46... Rg2+ {[%clk 0:00:02.5]} 47. Kf7
{[%clk 0:00:10]} 47... Kc5 {[%clk 0:00:02.4]} 48. Ke7 {[%clk 0:00:09.9]} 48...
Rf2 {[%clk 0:00:01.7]} 49. f7 {[%clk 0:00:10]} 49... Kd4 {[%clk 0:00:02]} 50.
f8=Q {[%clk 0:00:10.1]} 50... Rxf8 {[%clk 0:00:02.4]} 51. Kxf8 {[%clk
0:00:10.5]} 51... Kxe4 {[%clk 0:00:03]} 52. Ke7 {[%clk 0:00:10.8]} 52... Kf3
{[%clk 0:00:03.4]} 53. Kd6 {[%clk 0:00:10.9]} 53... e4 {[%clk 0:00:03.5]} 54.
Rf7+ {[%clk 0:00:10.4]} 54... Kg2 {[%clk 0:00:02.3]} 55. Re7 {[%clk 0:00:10.6]}
55... e3 {[%clk 0:00:02.5]} 56. Rxe3 {[%clk 0:00:09.5]} 1-0